bitfinex-derivatives/quotes_SOLF0:USTF0_20240905
["timestamp","ask_amount","ask_price","bid_price","bid_amount"]
[1725549057198,29.08,132.19,132.1,1.3151]
[1725549057393,29.08,132.19,132.1,2.7372]
[1725549057894,4.1631,132.24,132.13,0.05275852]
[1725549057895,0.05075081,132.16,132.13,0.05275852]
[1725549058097,3.7508482,132.15,132.13,0.05183911]
[1725549058299,0.05305994,132.16,132.13,0.05183911]
[1725549058504,0.05305994,132.16,132.13,3.83593911]
[1725549058706,0.05305994,132.16,132.13,0.05183911]
[1725549058895,3.76491568,132.16,132.13,0.05183911]
[1725549059103,0.05305994,132.16,132.13,0.05183911]
[1725549060105,29.13305994,132.16,132.13,0.05183911]
[1725549060403,3.83665994,132.16,132.13,0.05183911]
[1725549060597,0.05305994,132.16,132.13,0.05183911]
[1725549061000,29.08,132.17,132.05,31.8172]
[1725549061313,2.7666,132.18,132.05,2.7372]
[1725549061314,29.08,132.14,132.05,2.7372]
[1725549061497,32.87373012,132.14,132.06,3.7862]
[1725549062197,3.84225617,132.11,132.09,0.05740927]
[1725549063197,0.05725617,132.11,132.0,29.08]
[1725549063397,29.08,132.1,132.02,3.7874]
[1725549063694,3.7859,132.08,132.01,29.08]
[1725549063899,3.7859,132.08,132.04,3.7867]
[1725549064100,29.08,132.12,132.03,3.84953405]
[1725549064401,0.05611017,132.09,132.06,0.04894635]
[1725549064602,3.82760801,132.09,132.06,0.04894635]
[1725549064994,3.82760801,132.09,132.07,3.7858]
[1725549065198,3.82760801,132.09,132.06,0.04894635]
[1725549065601,0.05611017,132.09,132.06,0.04894635]
[1725549066594,0.05611017,132.09,132.08,3.7857]
[1725549066800,0.05611017,132.09,132.06,0.04894635]
[1725549067002,0.05611017,132.09,132.06,3.83514635]
[1725549067204,0.05611017,132.09,132.06,0.04894635]
[1725549067802,0.05611017,132.09,132.07,29.08]
[1725549067999,1.3544,132.16,132.07,29.08]
[1725549068000,3.85661263,132.16,132.07,29.08]
[1725549068208,1.2906,132.2,132.1,29.08]
[1725549068402,2.6615,132.2,132.1,29.08]
[1725549068804,3.7831,132.17,132.13,3.7841]
[1725549069005,3.91756092,132.16,132.14,0.05815878]
[1725549070010,0.04996511,132.16,132.14,3.84215878]
[1725549070711,0.04996511,132.16,132.15,3.7837]
[1725549071405,7.63027642,132.23,132.19,3.7825]
[1725549071606,2.7226,132.24,132.14,29.08]
[1725549071808,3.7827,132.19,132.14,3.7838]
[1725549072003,3.7827,132.19,132.12,29.08]
[1725549072004,3.7708192,132.19,132.12,29.08]
[1725549072308,3.7819,132.22,132.12,29.08]
[1725549072509,0.04779235,132.18,132.16,0.04951402]
[1725549072706,0.05602892,132.18,132.16,0.04951402]
[1725549072911,0.05602892,132.18,132.17,3.7831]
[1725549073206,0.05602892,132.18,132.16,0.04951402]
[1725549074010,0.05602892,132.18,132.16,3.83291402]
[1725549075008,0.05602892,132.18,132.16,0.04951402]
[1725549077109,0.05602892,132.18,132.16,3.83271402]
[1725549077300,0.05602892,132.18,132.16,0.04951402]
[1725549078309,0.05602892,132.18,132.17,3.7831]
[1725549081312,32.95323943,132.28,132.17,29.08]
[1725549081513,32.95323943,132.28,132.16,5.16802065]
[1725549081514,29.08,132.3,132.19,29.08]
[1725549082012,29.08,132.3,132.22,3.7816]
[1725549082209,0.05311238,132.27,132.25,0.05104786]
[1725549082406,32.8606,132.26,132.25,0.05104786]
[1725549083305,0.05311238,132.27,132.25,0.05104786]
[1725549083913,3.7806,132.26,132.25,0.05104786]
[1725549084705,29.08,132.27,132.18,1.2984]
[1725549085205,3.7813,132.24,132.2,3.7821]
[1725549085821,0.05792402,132.23,132.21,0.05813727]
[1725549086014,0.05792402,132.23,132.21,3.84013727]
[1725549087117,0.05792402,132.23,132.21,0.05813727]
[1725549088312,0.05792402,132.23,132.22,3.7817]
[1725549088614,0.05792402,132.23,132.21,0.05813727]
[1725549089521,0.05792402,132.23,132.21,3.84003727]
[1725549089818,0.05792402,132.23,132.21,0.05813727]
[1725549090011,0.05792402,132.23,132.22,3.7817]
[1725549092013,0.05792402,132.23,132.21,0.05813727]
[1725549093817,0.05792402,132.23,132.22,3.7817]
[1725549096319,33.132,132.31,132.26,3.7806]
[1725549097215,4.052,132.31,132.26,3.7806]
[1725549097415,0.04924776,132.3,132.27,3.83825796]
[1725549097819,0.04924776,132.3,132.27,0.05795796]
[1725549098621,0.04924776,132.3,132.27,3.83825796]
[1725549098919,0.04924776,132.3,132.27,0.05795796]
[1725549100326,3.82874776,132.3,132.27,0.05795796]
[1725549100915,3.7798,132.29,132.27,0.05795796]
[1725549101222,0.04924776,132.3,132.27,0.05795796]
[1725549101426,3.78,132.28,132.27,0.05795796]
[1725549101727,31.795,132.31,132.2,1.3011]
[1725549101913,3.7802,132.28,132.24,3.781]
[1725549102315,31.795,132.31,132.21,29.08]
[1725549102518,0.05439501,132.27,132.25,3.83170704]
[1725549102924,0.05439501,132.27,132.25,0.05100704]
[1725549103523,0.05439501,132.27,132.26,3.7806]
[1725549105721,0.05439501,132.27,132.26,5.1553]
[1725549106433,3.7791,132.31,132.29,3.7797]
[1725549106726,3.7791,132.31,132.28,3.7798]
[1725549106924,3.7795,132.3,132.26,1.3747]
[1725549107229,0.05652604,132.29,132.28,3.78]
[1725549107529,0.05716579,132.3,132.28,3.78]
[1725549107728,0.0551963,132.3,132.28,3.83744225]
[1725549108330,0.0551963,132.3,132.29,3.7797]
[1725549110923,29.08,132.38,132.28,0.05744225]
[1725549110924,29.08,132.4,132.28,0.05744225]
[1725549111130,29.08,132.4,132.34,3.7781]
[1725549111432,3.7773,132.38,132.34,3.7781]
[1725549111736,3.78138233,132.37,132.34,3.7781]
[1725549112031,3.83273941,132.37,132.34,3.83383143]
[1725549112329,3.75938793,132.37,132.34,0.05573143]
[1725549113429,7.53698793,132.37,132.34,0.05573143]
[1725549113628,3.75938793,132.37,132.34,0.05573143]
[1725549114136,3.778,132.35,132.34,0.05573143]
[1725549114826,3.75938793,132.37,132.34,0.05573143]
[1725549115138,0.05135708,132.37,132.34,0.05573143]
[1725549115332,3.81345082,132.37,132.34,0.05573143]
[1725549116025,3.778,132.35,132.34,0.05573143]
[1725549116230,3.81345082,132.37,132.34,0.05573143]
[1725549116622,3.7779,132.36,132.34,0.05573143]
[1725549116828,3.81345082,132.37,132.34,0.05573143]
[1725549117029,3.778,132.35,132.34,0.05573143]
[1725549117228,3.778,132.35,132.29,3.7795]
[1725549117229,29.08,132.36,132.29,3.7795]
[1725549117632,5.12509374,132.37,132.27,29.08]
[1725549117826,3.76209374,132.37,132.27,29.08]
[1725549118028,29.08,132.38,132.27,29.08]
[1725549118229,0.05734243,132.34,132.31,3.83206493]
[1725549118438,3.89844316,132.34,132.31,3.83206493]
[1725549118835,7.67674316,132.34,132.31,0.05296493]
[1725549119036,3.89844316,132.34,132.31,0.05296493]
[1725549119436,0.05734243,132.34,132.31,0.05296493]
[1725549119838,0.05734243,132.34,132.32,3.7788]
[1725549120034,3.79997058,132.34,132.32,3.7788]
[1725549120238,3.79997058,132.34,132.31,0.05296493]
[1725549120443,7.57837058,132.34,132.31,0.05296493]
[1725549121333,3.79997058,132.34,132.31,3.83206493]
[1725549121842,3.79997058,132.34,132.31,0.05296493]
[1725549123041,0.05734243,132.34,132.31,0.05296493]
[1725549123841,3.7787,132.33,132.31,0.05296493]
[1725549124841,3.7789,132.32,132.31,0.05296493]
[1725549126545,0.05734243,132.34,132.31,0.05296493]
[1725549127741,0.05734243,132.34,132.31,1.33806493]
[1725549128039,0.05734243,132.34,132.31,0.05296493]
[1725549128242,3.83584243,132.34,132.31,0.05296493]
[1725549128849,3.83584243,132.34,132.31,3.83206493]
[1725549129036,0.05734243,132.34,132.31,0.05296493]
[1725549129440,3.83564243,132.34,132.31,3.83196493]
[1725549129644,0.05734243,132.34,132.31,0.05296493]
[1725549130247,23.24,132.33,132.31,0.05296493]
[1725549131157,23.24,132.32,132.23,110.34985024]
[1725549131348,23.24,132.32,132.15,3.8327842]
[1725549131349,23.24,132.28,132.21,1.4117]
[1725549131652,23.24,132.28,132.19,1.3563]
[1725549131957,23.24,132.27,132.19,1.3563]
[1725549132148,0.05388053,132.24,132.22,0.04901818]
[1725549132355,3.84466974,132.23,132.22,0.04901818]
[1725549132750,0.05388053,132.24,132.22,0.04901818]
[1725549132948,0.05388053,132.24,132.22,23.28901818]
[1725549133151,0.05388053,132.24,132.23,5.1931]
[1725549133350,0.05388053,132.24,132.23,1.4117]
[1725549133855,0.05388053,132.24,132.22,0.04901818]
[1725549135558,0.05388053,132.24,132.22,3.83061818]
[1725549136056,0.05388053,132.24,132.23,3.7814]
[1725549136463,1.4136,132.31,132.22,23.28901818]
[1725549136751,1.4136,132.31,132.2,1.3409]
[1725549136752,23.24,132.34,132.24,23.24]
[1725549136951,23.24,132.34,132.24,26.97023678]
[1725549137453,3.83222541,132.3,132.28,0.05022771]
[1725549137650,3.83879264,132.29,132.28,0.05022771]
[1725549138752,0.05272541,132.3,132.28,0.05022771]
[1725549140156,0.05272541,132.3,132.28,3.83002771]
[1725549141458,3.79225697,132.29,132.28,0.05022771]
[1725549141855,0.05272541,132.3,132.28,0.05022771]
[1725549143066,3.80360198,132.29,132.28,0.05022771]
[1725549143259,0.05272541,132.3,132.28,0.05022771]
[1725549144556,0.05272541,132.3,132.28,1.45962771]
[1725549144756,0.05272541,132.3,132.29,3.7797]
[1725549148354,0.05272541,132.3,132.28,0.05022771]
[1725549149457,0.05272541,132.3,132.29,3.7797]
[1725549150065,3.82410768,132.36,132.33,3.7785]
[1725549150260,3.80622968,132.37,132.31,23.24]
[1725549150566,3.7773,132.38,132.35,3.7778]
[1725549150761,7.60810063,132.38,132.35,3.7778]
[1725549150960,2.6739,132.41,132.34,23.24]
[1725549151266,0.05672406,132.39,132.37,3.7773]
[1725549151469,0.05672406,132.39,132.36,0.05180944]
[1725549152065,3.7782,132.35,132.31,3.7789]
[1725549152257,3.7782,132.35,132.29,2.6647]
[1725549152461,29.04,132.38,132.29,2.6647]
[1725549152658,3.7779,132.36,132.32,3.7787]
[1725549152966,0.05784797,132.35,132.33,0.04779627]
[1725549153959,3.83604797,132.35,132.33,0.04779627]
[1725549154670,0.05784797,132.35,132.33,0.04779627]
[1725549155862,3.7783,132.34,132.33,0.04779627]
[1725549156664,3.83594797,132.35,132.33,0.04779627]
[1725549156963,0.05784797,132.35,132.33,0.04779627]
[1725549157358,3.7783,132.34,132.33,0.04779627]
[1725549157968,3.83594797,132.35,132.33,0.04779627]
[1725549158161,0.05784797,132.35,132.33,0.04779627]
[1725549159163,0.05784797,132.35,132.33,3.82619627]
[1725549160772,0.05784797,132.35,132.33,0.04779627]
[1725549161270,0.05784797,132.35,132.34,3.7783]
[1725549162666,0.05784797,132.35,132.34,32.8183]
[1725549165281,0.05784797,132.35,132.33,5.17189627]
[1725549165471,0.05784797,132.35,132.33,0.04779627]
[1725549166677,3.83594797,132.35,132.33,0.04779627]
[1725549166871,0.05784797,132.35,132.33,0.04779627]
[1725549167077,0.05784797,132.35,132.34,3.7783]
[1725549167680,0.05784797,132.35,132.33,0.04779627]
[1725549168072,0.05784797,132.35,132.34,3.7783]
[1725549171286,0.05784797,132.35,132.33,0.04779627]
[1725549171784,3.83604797,132.35,132.33,0.04779627]
[1725549172486,3.7783,132.34,132.33,0.04779627]
[1725549172878,3.83594797,132.35,132.33,0.04779627]
[1725549173078,0.05784797,132.35,132.33,0.04779627]
[1725549173382,3.7783,132.34,132.33,0.04779627]
[1725549174382,6.55854797,132.35,132.33,0.04779627]
[1725549174593,2.78044797,132.35,132.33,0.04779627]
[1725549174787,0.05784797,132.35,132.33,0.04779627]
[1725549176490,0.05784797,132.35,132.28,1.292]
[1725549176888,0.05784797,132.35,132.29,3.7795]
[1725549177084,3.83594797,132.35,132.28,24.532]
[1725549177285,0.05784797,132.35,132.28,24.532]
[1725549177489,3.7786,132.33,132.3,0.05041636]
[1725549177691,3.69990117,132.33,132.3,0.05041636]
[1725549177882,23.24,132.34,132.3,0.05041636]
[1725549178082,0.05784797,132.35,132.3,0.05041636]
[1725549178083,3.7791,132.31,132.3,0.05041636]
[1725549178387,3.86134178,132.31,132.22,25.8979]
[1725549178686,3.7798,132.29,132.25,3.7806]
[1725549178887,1.2843,132.31,132.22,25.8979]
[1725549179289,0.05420344,132.28,132.25,0.04943032]
[1725549179788,0.05420344,132.28,132.26,3.7803]
[1725549181190,0.05420344,132.28,132.25,3.83013032]
[1725549181489,28.93475156,132.39,132.25,23.28943032]
[1725549181689,3.7788,132.33,132.28,3.7799]
[1725549181990,3.81410093,132.32,132.27,23.24]
[1725549182390,3.7788,132.33,132.28,3.7799]
[1725549182585,0.05011544,132.31,132.28,0.05494654]
[1725549182788,23.29011544,132.31,132.28,0.05494654]
[1725549182989,23.24,132.31,132.23,3.7814]
[1725549183187,3.7802,132.28,132.23,3.7814]
[1725549183392,3.7802,132.28,132.24,3.781]
[1725549183691,28.48842874,132.31,132.22,2.6579]
[1725549183887,0.04991544,132.28,132.25,0.05603427]
[1725549184085,23.28991544,132.28,132.25,0.05603427]
[1725549184289,3.7805,132.27,132.25,0.05603427]
[1725549184586,5.24842874,132.31,132.18,2.8044]
[1725549184587,23.24,132.26,132.18,2.8044]
[1725549185295,3.781,132.25,132.2,3.7823]
[1725549185694,0.05302529,132.24,132.21,0.05751284]
[1725549186395,3.78751367,132.24,132.21,0.05751284]
[1725549188192,3.78751367,132.24,132.21,3.83951284]
[1725549188791,0.05302529,132.24,132.22,3.7817]
[1725549188993,0.05302529,132.24,132.21,0.05751284]
[1725549189393,0.05302529,132.24,132.23,3.7814]
[1725549190391,0.05302529,132.24,132.21,0.05751284]
[1725549190392,0.05302529,132.24,132.22,3.7816]
[1725549190692,3.92405403,132.24,132.22,3.7816]
[1725549190896,3.92405403,132.24,132.21,0.05751284]
[1725549191292,32.97405403,132.24,132.21,0.05751284]
[1725549191497,4.1906,132.23,132.11,31.6977]
[1725549191696,3.7822,132.21,132.11,35.56381195]
[1725549191901,3.7822,132.21,132.16,3.7833]
[1725549192405,3.7825,132.2,132.16,3.7833]
[1725549192599,3.83175967,132.2,132.17,0.04891224]
[1725549193198,0.04925967,132.2,132.17,0.04891224]
[1725549194199,0.04925967,132.2,132.17,3.83181224]
[1725549194395,0.04925967,132.2,132.17,0.04891224]
[1725549194700,0.04925967,132.2,132.17,29.09891224]
[1725549194896,0.04925967,132.2,132.19,3.7826]
[1725549196199,29.05,132.27,132.21,3.7819]
[1725549196803,29.05,132.27,132.18,1.313]
[1725549197299,0.05831742,132.24,132.21,0.055929]
[1725549197500,0.05831742,132.24,132.21,3.837729]
[1725549197698,3.77512153,132.24,132.21,0.055929]
[1725549197900,3.83951742,132.24,132.21,0.055929]
[1725549198199,3.74674898,132.24,132.21,0.055929]
[1725549198406,0.05831742,132.24,132.21,0.055929]
[1725549198598,3.78722715,132.24,132.21,0.055929]
[1725549199395,3.7817,132.22,132.21,0.055929]
[1725549200400,0.05831742,132.24,132.21,0.055929]
[1725549200903,3.8010299,132.24,132.21,0.055929]
[1725549201099,0.05831742,132.24,132.21,0.055929]
[1725549201509,0.05831742,132.24,132.21,3.837729]
[1725549201709,0.05831742,132.24,132.21,0.055929]
[1725549202109,0.05831742,132.24,132.21,3.837729]
[1725549203407,0.05831742,132.24,132.22,3.7817]
[1725549204512,0.05831742,132.24,132.23,3.7814]
[1725549206711,0.05831742,132.24,132.22,3.7815]
[1725549207010,0.05831742,132.24,132.21,0.055929]
[1725549207011,3.80178878,132.24,132.21,0.055929]
[1725549207205,0.05831742,132.24,132.21,0.055929]
[1725549207408,3.7816,132.23,132.21,0.055929]
[1725549207604,3.84453456,132.24,132.21,0.055929]
[1725549207807,0.05831742,132.24,132.21,3.837829]
[1725549208112,3.83951742,132.24,132.21,3.837829]
[1725549208316,0.05831742,132.24,132.21,3.837829]
[1725549209208,0.05831742,132.24,132.22,3.7817]
[1725549209710,0.05831742,132.24,132.21,0.055929]
[1725549209910,0.05831742,132.24,132.22,3.7815]
[1725549210217,0.05831742,132.24,132.21,0.055929]
[1725549210417,0.05831742,132.24,132.23,3.7814]
[1725549212107,3.7804,132.27,132.25,3.7808]
[1725549212509,3.7797,132.3,132.28,3.7799]
[1725549212720,3.82922874,132.31,132.23,1.4102]
[1725549212913,29.05,132.32,132.24,1.3581]
[1725549213110,0.05440733,132.29,132.28,3.78]
[1725549213311,0.05440733,132.29,132.27,0.05445015]
[1725549213817,0.05440733,132.29,132.27,3.83455015]
[1725549214008,0.05440733,132.29,132.27,0.05445015]
[1725549214212,0.05440733,132.29,132.27,3.83455015]
[1725549214416,0.05440733,132.29,132.27,0.05445015]
[1725549215308,3.78,132.28,132.27,0.05445015]
[1725549215514,0.05440733,132.29,132.27,0.05445015]
[1725549216114,3.83420733,132.29,132.27,0.05445015]
[1725549217124,3.78,132.28,132.27,0.05445015]
[1725549217516,0.05440733,132.29,132.27,0.05445015]
[1725549220624,3.78,132.28,132.27,0.05445015]
[1725549224128,27.01,132.28,132.27,0.05445015]
[1725549225219,3.78,132.28,132.27,0.05445015]
[1725549226533,0.05440733,132.29,132.27,0.05445015]
[1725549227127,3.78,132.28,132.27,0.05445015]
[1725549228432,0.05440733,132.29,132.27,0.05445015]
[1725549228831,3.78,132.28,132.27,0.05445015]
[1725549230937,3.7817,132.23,132.19,4.2179]
[1725549231137,3.83925869,132.23,132.19,4.2179]
[1725549231431,3.83925869,132.23,132.19,6.6115]
[1725549231432,3.7818,132.22,132.19,6.6115]
[1725549231630,3.7818,132.22,132.19,1.413]
[1725549231836,27.06925869,132.23,132.14,24.619]
[1725549232027,23.23,132.21,132.19,0.05418088]
[1725549232231,23.23,132.21,132.19,0.05358571]
[1725549232232,3.840048,132.2,132.19,0.05358571]
[1725549232629,23.28394629,132.21,132.19,0.05358571]
[1725549233027,27.01086252,132.21,132.19,0.05358571]
[1725549233232,30.79306252,132.21,132.19,0.05358571]
[1725549233739,7.56306252,132.21,132.19,0.05358571]
[1725549234834,3.7823,132.2,132.19,0.05358571]
[1725549236232,27.01086252,132.21,132.12,1.3602]
[1725549236432,23.23,132.18,132.12,1.3602]
[1725549237231,0.05611485,132.16,132.14,0.05209881]
[1725549239451,3.83961485,132.16,132.14,0.05209881]
[1725549239833,3.83951485,132.16,132.14,0.05209881]
[1725549240042,0.05611485,132.16,132.14,0.05209881]
[1725549240439,3.7837,132.15,132.14,0.05209881]
[1725549240637,23.28611485,132.16,132.14,0.05209881]
[1725549241242,27.0137,132.15,132.14,0.05209881]
[1725549241444,27.0137,132.15,132.08,1.3445]
[1725549241445,23.23,132.15,132.08,1.3445]
[1725549241637,1.3709,132.18,132.08,3.7855]
[1725549241638,27.0145,132.13,132.08,3.7855]
[1725549241845,23.23,132.13,132.08,3.7855]
[1725549242352,3.7847,132.12,132.08,3.7855]
[1725549242546,3.84048503,132.12,132.09,0.04815802]
[1725549243150,3.7849,132.11,132.09,0.04815802]
[1725549243348,23.23,132.11,132.09,0.04815802]
[1725549243858,27.015,132.11,132.09,0.04815802]
[1725549244149,23.23,132.11,132.09,0.04815802]
[1725549244656,3.7852,132.1,132.09,0.04815802]
[1725549245549,23.23,132.11,132.09,0.04815802]
[1725549246160,3.7852,132.1,132.09,0.04815802]
[1725549246557,23.23,132.11,132.02,1.3325]
[1725549246757,27.0157,132.08,132.02,1.3325]
[1725549247157,23.23,132.06,132.01,1.4231]
[1725549247467,23.23,132.06,131.95,3.73467534]
[1725549247468,23.23,132.04,131.97,2.6795]
[1725549247767,23.23,132.0,131.93,1.3193]
[1725549247951,3.86124365,132.06,131.99,0.05225688]
[1725549247952,30.5507,132.03,131.99,0.05225688]
[1725549248154,30.5507,132.03,131.96,3.789]
[1725549248358,3.83651521,132.02,132.0,0.04975097]
[1725549248960,3.7877,132.01,132.0,0.04975097]
[1725549249466,29.13,132.01,131.89,2.6795]
[1725549249667,29.13,131.98,131.89,3.9988]
[1725549249867,3.7898,131.94,131.89,3.9988]
[1725549250065,3.7898,131.94,131.89,2.6973]
[1725549250255,29.13,131.94,131.87,3.7916]
[1725549250560,0.05688799,131.92,131.89,0.04744889]
[1725549250759,29.13,131.91,131.89,0.04744889]
[1725549250959,0.05525284,131.92,131.81,1.4144]
[1725549251161,29.13,131.91,131.81,1.4144]
[1725549251460,3.83953611,131.94,131.81,5.2076]
[1725549251461,3.7917,131.88,131.81,5.2076]
[1725549251662,29.13,131.89,131.81,5.2076]
[1725549251855,0.05798742,131.86,131.81,3.7932]
[1725549252258,0.05798742,131.86,131.65,238.3942]
[1725549252259,29.18798742,131.86,131.65,238.3942]
[1725549252463,0.0506719,131.77,131.72,29.13]
[1725549252765,252.13,131.92,131.73,3.72306525]
[1725549252766,0.05203752,131.76,131.73,3.72306525]
[1725549252966,0.05203752,131.76,131.7,31.955]
[1725549252967,0.05340987,131.76,131.7,2.825]
[1725549253169,0.05340987,131.76,131.7,31.955]
[1725549253357,0.05340987,131.76,131.72,29.13]
[1725549253865,0.05340987,131.76,131.7,6.69108497]
[1725549254468,0.05340987,131.76,131.7,35.82108497]
[1725549255166,0.05340987,131.76,131.7,6.69108497]
[1725549255363,0.05340987,131.76,131.72,3.7958]
[1725549255567,3.82448948,131.75,131.7,2.825]
[1725549255769,0.05340987,131.76,131.7,6.6513873]
[1725549255964,0.05340987,131.76,131.71,3.7963]
[1725549256170,0.05340987,131.76,131.7,1.4178]
[1725549256668,0.05340987,131.76,131.7,5.2143]
[1725549256669,3.7957,131.74,131.7,5.2143]
[1725549256864,0.0485952,131.73,131.7,1.4178]
[1725549257271,0.0485952,131.73,131.71,3.7962]
[1725549258168,0.0485952,131.73,131.7,5.2144]
[1725549258366,0.0485952,131.73,131.7,1.4178]
[1725549259471,0.0485952,131.73,131.67,1.4144]
[1725549259472,3.82669362,131.73,131.67,1.4144]
[1725549259668,3.82669362,131.73,131.68,3.78227521]
[1725549259669,0.0485952,131.73,131.68,3.78227521]
[1725549259874,0.0485952,131.73,131.64,1.3626]
[1725549260066,29.13,131.77,131.64,1.3626]
[1725549260067,0.04899199,131.7,131.64,1.3626]
[1725549260970,0.04899199,131.7,131.66,3.7976]
[1725549261172,0.04899199,131.7,131.64,1.3626]
[1725549261572,3.7972,131.69,131.64,1.3626]
[1725549262070,3.7973,131.68,131.64,1.3626]
[1725549262370,29.13,131.72,131.64,1.3626]
[1725549262371,0.05577404,131.67,131.64,1.3626]
[1725549262764,0.05577404,131.67,131.61,3.88133404]
[1725549263166,0.05577404,131.67,131.61,33.01133404]
[1725549263374,0.05577404,131.67,131.64,1.3957]
[1725549263771,3.7962,131.72,131.64,1.3957]
[1725549263970,29.13,131.75,131.65,29.13]
[1725549264171,3.7958,131.73,131.69,3.7967]
[1725549264377,3.7853236,131.72,131.69,3.7967]
[1725549264571,3.7958,131.73,131.65,29.13]
[1725549264770,3.7260711,131.73,131.7,3.7966]
[1725549264972,0.05450385,131.73,131.68,0.05322224]
[1725549265175,0.05450385,131.73,131.69,3.79747797]
[1725549265371,0.05450385,131.73,131.68,0.05322224]
[1725549265572,0.05450385,131.73,131.68,3.80056347]
[1725549266385,0.05450385,131.73,131.72,3.7961]
[1725549267480,30.64944014,131.87,131.75,3.795]
[1725549267481,30.5344,131.81,131.75,3.795]
[1725549267682,30.5344,131.81,131.71,0.05577404]
[1725549267683,29.13,131.83,131.73,29.13]
[1725549267874,32.9231,131.83,131.73,29.13]
[1725549268072,32.9231,131.83,131.79,3.7939]
[1725549268281,29.13,131.85,131.75,29.13]
[1725549268485,3.7928,131.84,131.81,3.7934]
[1725549268676,3.84890421,131.83,131.81,3.7934]
[1725549268881,0.05168076,131.83,131.81,3.7934]
[1725549269181,0.05168076,131.83,131.82,3.7932]
[1725549269783,29.13,131.9,131.84,3.7925]
[1725549270289,3.7916,131.88,131.84,3.7925]
[1725549270474,29.13,131.88,131.8,1.2933]
[1725549270679,0.05602455,131.85,131.83,0.05519273]
[1725549270977,3.7914,131.89,131.85,3.7923]
[1725549271174,0.05163765,131.88,131.86,0.0495143]
[1725549271382,3.84323765,131.88,131.86,0.05434276]
[1725549271774,0.05163765,131.88,131.86,0.05434276]
[1725549271975,0.05163765,131.88,131.87,3.7918]
[1725549272488,0.05163765,131.88,131.86,0.05434276]
[1725549272489,1.3035,131.99,131.89,3.791]
[1725549272683,1.3035,131.99,131.89,32.94781857]
[1725549272684,5.16533238,131.99,131.89,32.94781857]
[1725549272878,5.16533238,131.99,131.9,1.398]
[1725549273077,32.9187,131.98,131.9,1.398]
[1725549273281,3.86183238,131.99,131.9,1.398]
[1725549273482,0.05687298,131.96,131.93,0.05669018]
[1725549275785,0.05687298,131.96,131.93,3.84659018]
[1725549275985,0.05687298,131.96,131.93,0.05669018]
[1725549276383,3.84627298,131.96,131.93,0.05669018]
[1725549276982,0.05687298,131.96,131.93,0.05669018]
[1725549277692,3.7895,131.95,131.93,0.05669018]
[1725549277992,0.05687298,131.96,131.93,0.05669018]
[1725549278192,3.7897,131.94,131.93,0.05669018]
[1725549278496,32.9197,131.94,131.93,0.05669018]
[1725549278681,32.9197,131.94,131.86,1.3772]
[1725549278682,29.13,131.94,131.86,1.3772]
[1725549278882,29.13,131.94,131.85,1.355]
[1725549279088,3.7908,131.91,131.85,5.147]
[1725549279288,29.13,131.94,131.85,1.355]
[1725549279695,0.05327227,131.91,131.89,3.7912]
[1725549279994,0.05327227,131.91,131.88,0.05224373]
[1725549280198,0.05327227,131.91,131.88,3.84354373]
[1725549280692,3.84407227,131.91,131.88,0.05224373]
[1725549280896,0.05327227,131.91,131.88,0.05224373]
[1725549281890,0.05327227,131.91,131.89,3.791]
[1725549282692,0.05327227,131.91,131.9,3.7909]
[1725549285793,0.05327227,131.91,131.89,3.7911]
[1725549286096,0.05327227,131.91,131.88,0.05224373]
[1725549286295,1.3069,132.01,131.85,1.355]
[1725549286296,29.13,131.98,131.89,29.13]
[1725549286498,29.13,132.0,131.9,1.2886]
[1725549286700,32.92141708,132.0,131.94,3.7895]
[1725549286889,3.7896,131.95,131.9,1.2886]
[1725549287094,29.13,131.98,131.9,1.2886]
[1725549287295,0.05244419,131.95,131.93,0.05765424]
[1725549287492,3.7898,131.94,131.93,0.05765424]
[1725549288997,3.7904,131.92,131.88,3.7913]
[1725549289499,3.69891576,131.91,131.88,3.7913]
[1725549289899,3.69891576,131.91,131.89,3.7911]
[1725549290102,0.05437586,131.91,131.89,3.84800047]
[1725549290602,3.89387828,131.91,131.89,0.05690047]
[1725549290903,0.05437586,131.91,131.89,0.05690047]
[1725549291796,0.05437586,131.91,131.89,3.84790047]
[1725549292401,0.05437586,131.91,131.9,3.7909]
[1725549294412,0.05437586,131.91,131.89,3.84800047]